bitfinex-derivatives/quotes_ETHF0:USTF0_20251012
["timestamp","ask_amount","ask_price","bid_price","bid_amount"]
[1760238267925,0.3401,3737.9,3737.6,0.00204301]
[1760238268130,0.1464,3738.0,3737.6,0.00204301]
[1760238268331,0.3401,3737.7,3737.6,0.00204301]
[1760238268632,1.20283,3737.8,3736.4,0.3335]
[1760238268929,1.20283,3737.8,3736.0,0.1132]
[1760238268930,0.48121,3737.2,3736.9,0.48124]
[1760238269130,0.1464,3737.5,3736.9,0.48124]
[1760238269430,0.48118,3737.4,3737.3,0.3335]
[1760238269723,0.3401,3737.5,3737.3,0.33547752]
[1760238269929,0.48116,3737.6,3737.3,0.33547752]
[1760238270129,0.82127,3737.5,3737.3,0.33547752]
[1760238270528,0.3401,3737.4,3737.3,0.33547752]
[1760238270728,0.3401,3737.4,3737.3,0.00197752]
[1760238271428,0.48113,3737.8,3737.3,0.33547752]
[1760238271628,0.1464,3738.0,3737.4,0.3335]
[1760238271828,0.3401,3737.9,3737.3,0.48316752]
[1760238272024,0.1464,3738.0,3737.3,0.48316752]
[1760238272230,0.3401,3737.9,3737.3,0.00197752]
[1760238272425,0.4865,3738.0,3737.3,0.33547752]
[1760238272731,0.96761,3738.0,3737.7,0.48113]
[1760238272927,0.1464,3738.0,3737.5,0.48116]
[1760238273127,0.3401,3737.9,3737.5,0.48116]
[1760238273327,0.3401,3737.9,3737.4,0.3335]
[1760238273528,0.3401,3737.9,3737.7,0.48114]
[1760238273730,0.3401,3737.8,3737.7,0.48114]
[1760238274135,0.48107,3738.3,3738.0,0.4811]
[1760238274430,0.3401,3737.7,3737.4,0.48118]
[1760238274635,0.3401,3737.6,3737.5,0.48116]
[1760238274831,0.3401,3737.6,3737.5,0.81926]
[1760238276731,0.3466,3737.9,3737.8,0.48112]
[1760238277832,0.3466,3738.1,3738.0,0.4811]
[1760238278430,0.3466,3738.4,3737.6,0.3381]
[1760238279332,0.3466,3738.4,3737.7,0.3381]
[1760238279625,0.48106,3738.4,3738.1,0.48108]
[1760238280028,0.3466,3738.3,3738.1,0.48108]
[1760238281026,0.48106,3738.4,3738.1,0.48108]
[1760238281226,0.3466,3738.2,3738.1,0.48108]
[1760238281930,0.62932643,3738.5,3737.6,1.90488694]
[1760238281931,0.00188643,3738.5,3737.6,1.90488694]
[1760238282139,0.04656637,3739.6,3739.5,0.3387]
[1760238282140,0.9551093,3739.6,3739.5,0.3387]
[1760238282339,0.3556,3739.7,3739.5,0.81961]
[1760238282928,1.0981093,3741.0,3739.5,5.0]
[1760238283128,1.0981093,3741.0,3740.3,0.4808]
[1760238283129,0.00332323,3740.5,3740.3,0.4808]
[1760238283332,0.00332323,3740.5,3740.4,0.68512381]
[1760238284242,0.3556,3741.4,3741.1,0.3387]
[1760238284428,0.48063,3741.7,3741.2,0.34642381]
[1760238284628,0.48063,3741.7,3741.3,0.34642381]
[1760238284835,0.143,3742.0,3741.2,0.3387]
[1760238284836,0.3556,3741.5,3741.4,0.34642381]
[1760238285140,0.143,3742.0,3741.4,0.34642381]
[1760238285330,0.3556,3741.9,3741.6,0.3387]
[1760238285530,0.3556,3741.9,3741.7,0.34642381]
[1760238285730,0.3556,3741.9,3741.8,0.34642381]
[1760238286143,0.022,3742.8,3742.7,0.4805]
[1760238286442,0.3556,3744.3,3743.7,0.48037]
[1760238286638,0.143,3745.0,3743.9,0.3143]
[1760238286639,0.48024,3744.7,3743.9,0.3143]
[1760238286827,0.3556,3744.6,3744.0,0.34642381]
[1760238287028,0.83591,3744.2,3744.1,0.17370318]
[1760238287229,0.3556,3743.8,3742.1,0.3143]
[1760238287439,0.3556,3743.4,3742.6,0.3143]
[1760238287835,0.48039,3743.6,3742.8,0.3143]
[1760238288039,0.83601,3743.4,3742.8,0.3143]
[1760238288334,0.4986,3743.0,3742.4,0.3143]
[1760238288539,0.3556,3742.9,3742.1,0.00260529]
[1760238288732,0.143,3743.5,3742.2,0.3143]
[1760238288935,9.824,3744.9,3743.8,0.3143]
[1760238289141,9.824,3744.9,3743.5,0.1114]
[1760238289142,0.4986,3745.5,3744.7,0.3143]
[1760238289536,0.4986,3745.5,3744.7,0.79454]
[1760238289537,0.3556,3745.5,3744.7,0.79454]
[1760238289845,0.4986,3745.5,3744.7,0.79454]
[1760238290043,0.50186206,3745.5,3744.7,0.79454]
[1760238290245,0.50186206,3745.5,3744.7,0.3143]
[1760238290843,0.50186206,3745.5,3744.7,0.79453]
[1760238291141,0.48015,3745.4,3744.7,0.79453]
[1760238291348,0.48015,3745.4,3744.7,0.3143]
[1760238291944,0.48015,3745.4,3744.7,0.79454]
[1760238292150,0.48015,3745.4,3744.7,0.3143]
[1760238292641,0.48018,3745.3,3744.7,0.3143]
[1760238293036,0.48019,3745.1,3744.3,0.3143]
[1760238293940,0.3556,3744.4,3743.6,0.3143]
[1760238294238,0.4803,3744.3,3743.6,0.79468]
[1760238294432,0.3556,3744.4,3743.9,0.48034]
[1760238294635,0.48018,3745.3,3744.7,0.3143]
[1760238294829,0.3556,3745.4,3744.7,0.3143]
[1760238295040,0.3556,3745.4,3744.7,0.79453]
[1760238295233,0.3556,3745.1,3744.2,0.4803]
[1760238295438,0.143,3745.0,3744.2,0.4803]
[1760238295641,0.143,3745.0,3744.1,0.3143]
[1760238295851,0.3556,3744.8,3744.1,0.3143]
[1760238296038,0.3556,3745.3,3744.0,0.0929]
[1760238296349,0.3556,3745.4,3744.9,0.48021]
[1760238296538,0.3556,3745.4,3744.9,0.48347042]
[1760238296738,0.3556,3745.4,3745.0,0.3143]
[1760238297946,0.83576,3745.3,3745.0,0.3143]
[1760238298647,0.00326206,3745.5,3745.2,0.3143]
[1760238298836,0.00326206,3745.5,3745.3,0.3143]
[1760238299146,0.00326206,3745.5,3745.4,0.3143]
[1760238299347,0.48015,3745.4,3745.1,0.3143]
[1760238299650,0.35886206,3745.5,3745.2,0.33555347]
[1760238299840,0.35886206,3745.5,3745.3,0.33555347]
[1760238300041,0.3556,3745.4,3745.1,0.3143]
[1760238300244,0.3556,3745.4,3745.2,0.33563]
[1760238300442,0.00326206,3745.5,3745.4,0.3143]
[1760238300640,0.00326206,3745.5,3745.4,0.64993]
[1760238300843,0.00326206,3745.5,3745.4,0.3143]
[1760238301043,0.00326206,3745.5,3745.4,0.64973896]
[1760238301244,0.50186206,3745.5,3745.4,0.33543896]
[1760238301555,5.50186206,3745.5,3745.4,0.33543896]
[1760238301840,5.50186206,3745.5,3744.9,0.00326042]
[1760238301841,0.6232,3745.0,3744.9,0.00326042]
[1760238302042,0.6232,3745.0,3743.6,0.3143]
[1760238302043,0.3556,3744.9,3743.6,0.3143]
[1760238302245,0.3556,3744.9,3743.7,0.48036]
[1760238302246,0.3556,3744.8,3743.7,0.48036]
[1760238302444,0.48033,3744.1,3743.5,0.48039]
[1760238302644,0.3556,3744.9,3743.5,0.0929]
[1760238302849,0.48017,3745.3,3744.7,0.3143]
[1760238303041,0.50186206,3745.5,3744.7,0.0027252]
[1760238303245,0.3556,3744.3,3743.9,0.79464]
[1760238303542,0.48031,3744.2,3743.7,0.3143]
[1760238303745,0.48035,3743.9,3742.7,0.3143]
[1760238303941,0.143,3744.5,3742.9,0.3143]
[1760238304142,0.48029,3744.4,3743.8,0.48034]
[1760238304347,0.48031,3744.2,3743.7,0.3143]
[1760238304542,0.48031,3744.2,3743.6,0.3143]
[1760238304849,0.83591,3744.2,3743.9,0.3122]
[1760238305047,0.48029,3744.4,3743.8,0.48035]
[1760238305245,0.48029,3744.4,3744.0,0.3122]
[1760238305844,0.3324,3744.7,3743.2,0.3122]
[1760238306245,0.3324,3744.7,3744.4,0.3122]
[1760238306645,0.14626206,3745.5,3744.6,0.3122]
[1760238306646,0.3324,3745.4,3744.6,0.3122]
[1760238306850,0.00326206,3745.5,3745.2,0.3122]
[1760238307051,0.48341206,3745.5,3745.2,0.3122]
[1760238307251,0.3324,3745.3,3744.7,0.79243]
[1760238307451,0.3324,3745.3,3744.7,0.3122]
[1760238307953,0.3324,3745.3,3744.1,1.20078]
[1760238307954,0.00326206,3745.5,3745.3,0.3122]
[1760238308254,0.00326206,3745.5,3745.3,0.79236]
[1760238308647,0.00326206,3745.5,3744.1,1.20078]
[1760238308648,0.3324,3745.3,3744.1,0.3122]
[1760238308852,0.48026,3744.6,3744.2,0.4803]
[1760238309043,0.81268,3744.5,3744.0,0.48033]
[1760238309244,0.48032,3744.2,3743.0,0.4215]
[1760238309455,0.81269,3744.4,3743.8,0.48035]
[1760238309750,0.3324,3744.2,3743.8,0.48035]
[1760238309948,0.4803,3744.3,3743.8,0.48035]
[1760238310139,0.1432,3744.5,3743.0,0.1093]
[1760238310339,0.81265,3744.7,3744.3,0.48029]
[1760238310552,0.3324,3744.4,3743.6,0.48038]
[1760238310741,0.3324,3744.4,3743.5,0.3122]
[1760238310742,0.81269,3744.4,3743.5,0.3122]
[1760238310945,1.20034,3745.6,3742.9,1.20405925]
[1760238310946,0.3324,3746.8,3745.4,0.3122]
[1760238311142,0.3324,3746.8,3746.0,0.48007]
[1760238311352,0.81238,3746.8,3746.1,0.48005]
[1760238311542,0.4756,3747.0,3746.5,0.48]
[1760238311745,0.4756,3747.0,3746.1,0.309]
[1760238311746,0.3324,3747.1,3746.8,0.47997]
[1760238311941,0.3324,3747.1,3746.1,0.309]
[1760238312150,0.3324,3747.1,3746.8,0.00309669]
[1760238312151,0.3324,3747.0,3746.8,0.00309669]
[1760238312448,0.3324,3747.0,3746.8,0.48306669]
[1760238312843,0.3324,3747.0,3746.8,0.00309669]
[1760238313056,0.3324,3747.0,3746.8,0.48305669]
[1760238313248,0.3324,3747.0,3746.8,0.00309669]
[1760238313649,0.3324,3747.0,3746.8,0.48305669]
[1760238314050,0.3324,3747.0,3746.8,0.00309669]
[1760238314951,5.81236,3746.9,3746.8,0.00309669]
[1760238315551,6.43587775,3746.9,3746.8,0.00309669]
[1760238315746,0.62322,3746.5,3745.9,0.48008]
[1760238315954,0.62322,3746.5,3745.3,0.309]
[1760238315955,0.48006,3746.2,3745.3,0.309]
[1760238316145,0.81243,3746.4,3745.3,0.309]
[1760238316344,0.81243,3746.4,3745.9,0.78908]
[1760238316546,0.3324,3746.4,3745.9,0.309]
[1760238316740,0.3324,3746.4,3745.9,0.00239732]
[1760238316943,0.81236,3746.9,3745.9,0.00239732]
[1760238317255,1.10435751,3746.8,3745.9,0.31139732]
[1760238317453,0.62437751,3746.7,3745.9,0.31139732]
[1760238317648,0.022,3747.8,3747.0,0.419]
[1760238317852,0.9551093,3748.8,3747.8,0.307]
[1760238318050,0.47971,3748.9,3748.1,0.4798]
[1760238318246,0.1432,3749.0,3747.8,0.307]
[1760238318553,0.6229,3749.0,3748.1,0.4798]
[1760238318752,0.00222042,3749.0,3747.1,0.307]
[1760238318951,0.00222042,3749.0,3748.1,0.47979]
[1760238318952,0.47971,3748.9,3748.1,0.47979]
[1760238319147,0.47971,3748.9,3748.2,0.47978]
[1760238319351,0.00222042,3749.0,3748.5,0.47975]
[1760238319855,0.00222042,3749.0,3748.6,0.47974]
[1760238320046,0.33462042,3749.0,3748.6,0.00316043]
[1760238320242,0.3324,3748.9,3748.6,0.00316043]
[1760238320558,0.3324,3748.7,3748.6,0.00316043]
[1760238321051,5.3324,3748.7,3748.6,0.00316043]
[1760238321251,0.3324,3748.3,3747.6,0.307]
[1760238321555,0.3324,3748.3,3748.0,0.307]
[1760238321758,0.3324,3748.3,3746.4,1.20005]
[1760238321759,0.3324,3747.9,3747.0,0.78694]
[1760238321950,0.3324,3747.9,3747.0,0.307]
[1760238322145,0.3324,3747.9,3747.0,0.30990862]
[1760238322455,0.3324,3747.9,3747.0,0.00290862]
[1760238322651,0.47992,3747.3,3747.0,0.00290862]
[1760238322854,0.3324,3747.2,3747.0,0.00290862]
[1760238323152,0.81233,3747.1,3747.0,0.00290862]
[1760238323751,0.3324,3747.1,3747.0,0.00290862]
[1760238324054,0.81233,3747.2,3747.0,0.00290862]
[1760238324350,0.3324,3747.1,3747.0,0.00290862]
[1760238324555,0.3292,3747.1,3747.0,0.00290862]
[1760238324748,0.326,3747.1,3747.0,0.00290862]
[1760238324954,0.47993,3747.2,3747.0,0.00290862]
[1760238325653,0.1432,3748.0,3747.0,0.00290862]
[1760238325852,0.1432,3748.0,3747.0,0.31630862]
[1760238326155,0.47983,3747.9,3747.3,0.4799]
[1760238326355,0.47983,3748.0,3747.1,0.3134]
[1760238327148,0.3324,3748.4,3747.1,0.3134]
[1760238327354,0.47981,3748.1,3747.1,0.3134]
[1760238328054,0.47981,3748.1,3747.6,0.47986]
[1760238328263,0.47983,3748.0,3747.6,0.47986]
[1760238328564,0.47977,3748.4,3747.8,0.47984]
[1760238328865,0.47979,3748.3,3748.0,0.3134]
[1760238329055,0.4798,3748.2,3747.8,0.3134]
[1760238329256,0.4798,3748.2,3747.8,0.79324]
[1760238329457,0.3324,3748.4,3748.1,0.3134]
[1760238329657,0.47976,3748.5,3748.1,0.7932]
[1760238329961,0.81216,3748.5,3748.1,0.7932]
[1760238330156,0.14542042,3749.0,3747.4,0.47988]
[1760238330466,0.3324,3747.6,3747.3,0.4799]
[1760238330662,0.1432,3748.0,3747.0,0.00290862]
[1760238330860,0.3324,3747.1,3747.0,0.00290862]
[1760238332065,0.3324,3747.8,3747.0,0.48285862]
[1760238332360,0.3324,3747.8,3747.3,0.4799]
[1760238332361,0.47986,3747.7,3747.3,0.4799]
[1760238332558,0.47986,3747.7,3747.4,0.3134]
[1760238332954,0.81226,3747.7,3747.4,0.47989]
[1760238333160,0.3324,3747.7,3747.4,0.79329]
[1760238333360,0.47981,3748.1,3747.6,0.47986]
[1760238333566,0.3324,3748.0,3747.7,0.47985]
[1760238333766,0.3324,3748.0,3747.8,0.47984]
[1760238334065,0.81224,3747.9,3747.5,0.79328]
[1760238334260,0.81224,3747.9,3747.6,0.47986]
[1760238334658,0.3324,3747.9,3747.7,0.47985]
[1760238335364,0.47987,3747.7,3747.0,0.00290862]
[1760238335568,0.3596,3747.6,3747.3,0.4799]
[1760238335771,0.47981,3748.1,3747.0,0.00290862]
[1760238335978,0.47982,3748.0,3747.7,0.3114]
[1760238336170,0.47984,3747.9,3747.7,0.3114]
[1760238336673,0.47985,3747.8,3747.5,0.3114]
[1760238336872,0.3596,3747.7,3747.4,0.47989]
[1760238337175,0.47985,3747.8,3747.5,0.3114]
[1760238337373,0.3596,3747.7,3747.5,0.3114]
[1760238338566,0.47979,3748.3,3747.0,0.00290862]
[1760238338771,0.139,3747.5,3747.0,0.00290862]
[1760238338970,0.3596,3747.4,3747.0,0.00290862]
[1760238339168,0.83951,3747.3,3747.0,0.00290862]
[1760238339468,0.3596,3747.9,3747.1,0.3114]
[1760238339673,0.47984,3747.9,3747.4,0.47988]
[1760238339869,0.47985,3747.8,3747.5,0.3114]
[1760238340069,0.47985,3747.8,3747.4,0.47988]
[1760238340270,0.47985,3747.8,3747.5,0.3114]
[1760238340470,0.3596,3747.7,3747.5,0.3114]
[1760238340973,0.8395,3747.4,3747.0,0.48284862]
[1760238341177,0.3596,3747.2,3747.0,0.00290862]
[1760238341376,0.4799,3747.4,3747.0,0.00290862]
[1760238341575,0.346,3747.3,3747.0,0.00290862]
[1760238341771,0.4799,3747.4,3747.0,0.00290862]
[1760238341973,0.346,3747.3,3747.0,0.00290862]
[1760238342179,0.346,3747.1,3747.0,0.00290862]
[1760238343581,0.346,3746.4,3746.2,0.48004]
[1760238343783,0.346,3746.6,3746.3,0.79483]
[1760238344368,0.346,3746.6,3746.3,0.79725323]
[1760238344573,0.47998,3746.8,3746.3,0.00242323]
[1760238344776,0.47998,3746.8,3746.6,0.3148]
[1760238345172,2.1547393,3747.8,3746.6,0.3148]
[1760238345173,1.19964,3747.8,3746.6,0.47999]
[1760238345369,0.47994,3747.1,3746.6,0.47999]
[1760238345569,0.346,3747.1,3746.8,0.47997]
[1760238345774,0.47991,3747.3,3746.9,0.79475]
[1760238346077,0.47991,3747.3,3747.0,0.79474]
[1760238346471,0.82591,3747.3,3747.0,0.79474]
[1760238346670,0.47991,3747.3,3747.0,0.47994]
[1760238346871,0.346,3747.1,3746.8,0.47996]
[1760238347072,0.139,3748.0,3747.4,0.47989]
[1760238347274,0.139,3748.0,3746.6,1.2]
[1760238347275,0.82582,3748.0,3747.7,0.3148]
[1760238347786,0.346,3748.0,3747.7,0.3148]
[1760238348378,0.346,3748.0,3746.5,0.1178]
[1760238348379,0.14652042,3749.0,3747.1,0.3148]
[1760238348578,0.47975,3748.6,3748.3,0.47977]
[1760238348776,0.346,3748.6,3748.4,0.47976]
[1760238349182,0.00222042,3749.0,3747.8,0.3148]
[1760238349382,0.00222042,3749.0,3748.7,0.47973]
[1760238349581,0.34822042,3749.0,3748.7,0.79453]
[1760238349777,0.34822042,3749.0,3748.0,0.0877]
[1760238349778,0.346,3748.9,3748.6,0.47973]
[1760238349981,0.00222042,3749.0,3748.2,0.3148]
[1760238350181,0.00222042,3749.0,3748.9,0.3148]
[1760238351486,0.00222042,3749.0,3748.9,5.3148]
[1760238351686,0.346,3750.0,3749.6,0.47961]
[1760238351892,0.346,3750.0,3749.7,0.3126]
[1760238352184,0.47956,3750.1,3749.7,0.3126]
[1760238352185,0.346,3750.1,3749.7,0.3126]
[1760238352382,0.346,3750.0,3749.7,0.3126]
[1760238352588,0.48232576,3750.0,3749.7,0.31480211]
[1760238352787,0.82558,3749.9,3749.7,0.00220211]
[1760238353083,0.346,3749.8,3749.7,0.00220211]
[1760238353289,5.346,3749.8,3749.7,0.00220211]
[1760238353882,0.4796,3749.7,3748.7,0.3126]
[1760238354084,0.346,3749.7,3748.7,0.79232]
[1760238354284,0.82567,3749.2,3748.8,0.79231]
[1760238354484,0.346,3749.9,3748.1,0.3126]
[1760238354685,0.346,3749.9,3748.6,0.3126]
[1760238354884,0.4796,3749.8,3749.3,0.47964]
[1760238355093,0.8256,3749.8,3749.4,0.3126]
[1760238355481,0.47962,3749.6,3749.4,0.3126]
[1760238355684,0.82565,3749.4,3749.2,0.3126]
[1760238356381,0.346,3749.3,3748.6,0.31551327]
[1760238356591,0.346,3748.8,3748.6,0.48265327]
[1760238356779,0.47966,3749.3,3748.8,0.47971]
[1760238356980,0.82567,3749.2,3748.9,0.3126]
[1760238357190,0.82573,3748.7,3748.6,0.00291327]
[1760238357689,0.82573,3748.7,3747.0,2.01418694]
[1760238357690,0.1443,3748.0,3746.7,1.90488694]
[1760238357985,0.346,3747.6,3747.0,0.3126]
[1760238358189,0.346,3747.6,3746.5,0.3126]
[1760238358386,0.47993,3747.2,3746.7,0.47998]
[1760238358582,0.0032647,3747.2,3746.9,0.3126]
[1760238358886,0.82594,3747.1,3746.8,0.3126]
[1760238359082,0.47997,3746.9,3746.7,0.00306722]
[1760238359282,0.346,3746.8,3746.7,0.00306722]
[1760238359483,0.0032647,3747.2,3746.7,0.00306722]
[1760238359675,0.47996,3747.0,3746.8,0.3126]
[1760238359876,0.82596,3747.0,3746.7,0.00306722]
[1760238360088,0.346,3746.8,3746.7,0.00306722]
[1760238360287,0.82594,3747.1,3746.7,0.00306722]
[1760238360479,0.47994,3747.1,3746.7,0.00306722]
[1760238360679,0.47995,3747.0,3746.8,0.3126]
[1760238360880,0.0032647,3747.2,3747.1,0.47993]
[1760238361182,0.0032647,3747.2,3746.8,0.3126]
[1760238361378,0.47995,3747.0,3746.7,0.00306722]
[1760238361583,0.82595,3747.0,3746.7,0.00306722]
[1760238361781,0.47997,3746.9,3746.7,0.00306722]
[1760238361983,0.346,3746.8,3746.7,0.00306722]
[1760238362891,0.48008,3746.0,3745.5,0.48013]
[1760238363092,0.8261,3745.9,3745.3,0.48016]
[1760238363291,0.48011,3745.8,3745.2,0.48017]
[1760238363593,0.48013,3745.6,3744.5,0.3126]
[1760238363791,0.346,3745.8,3745.0,0.4802]
[1760238364097,1.19999,3746.7,3745.0,0.4802]
[1760238364098,0.82595,3747.0,3745.2,1.90488694]
[1760238364286,0.82595,3747.0,3746.3,0.48003]
[1760238364486,0.47997,3746.9,3746.3,0.3126]
[1760238364687,0.82599,3746.7,3746.3,0.3126]
[1760238364893,0.82895,3746.3,3745.6,0.48013]
[1760238365084,0.82895,3746.3,3745.5,0.3125]
[1760238365286,0.1475,3747.0,3744.8,1.90488694]
[1760238365287,0.48001,3746.6,3746.0,0.3125]
[1760238365490,0.48001,3746.6,3744.9,1.90488694]
[1760238365491,1.34737,3747.0,3745.5,0.48014]
[1760238365791,0.48004,3746.4,3745.8,0.48009]
[1760238366092,0.82894,3746.4,3745.4,0.3125]
[1760238366289,0.3489,3746.9,3746.0,0.79256]
[1760238366587,0.48001,3746.6,3746.0,0.79256]
[1760238366891,0.47995,3747.0,3746.1,0.3125]
[1760238367091,0.1443,3747.5,3746.2,1.51263]
[1760238367388,0.3489,3746.9,3746.1,0.48005]
[1760238367594,0.4831947,3747.2,3746.6,0.79249]
[1760238367790,0.0032647,3747.2,3746.6,0.79249]
[1760238367983,0.47999,3746.7,3745.6,0.3125]
[1760238368190,0.0032647,3747.2,3746.9,0.3125]
[1760238368391,0.0032647,3747.2,3745.6,1.20032]
[1760238368392,0.47996,3747.0,3745.7,0.3125]
[1760238368590,0.3521647,3747.2,3745.8,0.3125]
[1760238368783,0.3521647,3747.2,3746.9,0.47995]
[1760238368982,0.3521647,3747.2,3746.3,0.3125]
[1760238369391,0.3521647,3747.2,3746.8,0.47996]
[1760238369693,0.3521647,3747.2,3746.3,0.3125]
[1760238369889,0.3521647,3747.2,3745.5,0.1155]
[1760238369890,0.48003,3746.4,3745.6,0.3125]
[1760238370191,0.48006,3746.2,3745.6,0.3125]
[1760238370500,0.2996,3746.1,3746.0,0.59557]
[1760238370795,0.2996,3746.1,3746.0,0.90807]
[1760238371492,0.0032647,3747.2,3747.1,0.3125]
[1760238376304,0.82869,3748.3,3747.2,0.3092]
[1760238376501,0.47977,3748.4,3747.0,0.1093]
[1760238376803,0.47977,3748.4,3748.1,0.4798]
[1760238377004,0.82867,3748.4,3748.1,0.4798]
[1760238377201,0.00194626,3748.4,3748.1,0.00283544]
[1760238377401,0.00194626,3748.4,3748.3,0.3092]
[1760238379498,0.00194626,3748.4,3748.2,0.3092]
[1760238380109,0.48171626,3748.4,3748.2,0.3092]
[1760238380302,0.48171626,3748.4,3748.1,0.00283544]
[1760238380303,0.82869,3748.2,3748.1,0.00283544]
[1760238380899,0.82869,3748.2,3746.5,3.19259694]
[1760238380900,0.82882,3747.3,3746.9,0.47995]
[1760238381109,0.3489,3747.2,3746.9,0.78915]
[1760238381312,0.47997,3746.8,3746.2,0.3092]
[1760238381514,0.3489,3746.9,3745.9,0.3092]
[1760238381808,0.3489,3746.3,3745.9,0.00233775]
[1760238382001,0.1475,3747.0,3745.9,0.00233775]
[1760238382002,0.3489,3746.0,3745.9,0.00233775]
[1760238382605,0.4964,3746.0,3745.9,0.00233775]
[1760238383012,0.4964,3746.0,3745.0,0.3092]
[1760238383208,0.3489,3745.4,3744.5,2.21408694]
[1760238383419,0.8291,3745.1,3744.4,0.48027]
[1760238383620,0.62764,3745.5,3744.8,0.48023]
[1760238383911,0.1475,3745.0,3744.1,0.3092]
[1760238384118,0.3489,3744.9,3744.4,0.48027]
[1760238384316,0.14993788,3745.0,3744.4,0.48027]
[1760238384517,0.3489,3744.9,3744.4,0.48027]
[1760238384708,0.14993788,3745.0,3744.1,0.00314242]
[1760238384910,0.00243788,3745.0,3744.7,0.48023]
[1760238385407,0.3489,3744.9,3744.5,0.48026]
[1760238385808,0.3489,3744.9,3744.6,0.48024]
[1760238386209,0.3489,3744.9,3744.2,0.3092]
[1760238386709,0.3489,3744.6,3744.1,0.00314242]
[1760238386914,0.3489,3744.8,3744.4,0.48028]
[1760238387219,0.14993788,3745.0,3744.4,0.48028]
[1760238387417,0.82913,3744.9,3744.2,0.4803]
[1760238387619,0.3489,3744.9,3744.1,0.00314242]
[1760238387823,0.3489,3744.2,3744.1,0.00314242]
[1760238388722,0.3489,3743.7,3743.2,0.48043]
[1760238388913,0.48037,3743.8,3743.2,0.48043]
[1760238389112,0.48043,3743.3,3742.8,0.02671797]
[1760238389422,0.4964,3744.0,3742.9,0.3092]
[1760238389717,0.4964,3744.0,3743.3,0.48041]
[1760238389922,9.806,3745.2,3743.2,0.3092]
[1760238390117,0.3489,3744.4,3743.9,0.48034]
[1760238390312,0.1475,3744.0,3743.9,0.48034]
[1760238390517,0.4964,3744.0,3743.9,0.48034]
[1760238391223,0.3489,3743.9,3743.6,0.48037]
[1760238391721,0.82925,3743.9,3743.2,0.48042]
[1760238391922,0.1475,3743.5,3743.1,0.48044]
[1760238392225,0.3489,3743.4,3743.1,0.48044]
[1760238392415,0.3489,3743.4,3742.9,0.48309124]
[1760238392618,0.00243788,3745.0,3742.9,0.00262124]
[1760238392818,0.13128499,3746.9,3746.7,0.47998]
[1760238393016,0.1475,3750.5,3748.5,0.1095]
[1760238393216,0.1475,3751.0,3748.8,0.3004]
[1760238393424,0.1475,3751.0,3750.9,0.47945]
[1760238393621,0.09801244,3751.5,3749.9,1.23980689]
[1760238393829,0.00203402,3751.0,3750.9,0.30244284]
[1760238394018,0.00203402,3751.0,3749.9,0.70301564]
[1760238394220,0.00203402,3751.0,3748.7,0.93940689]
[1760238394522,0.1475,3750.6,3748.9,1.19927]
[1760238394825,0.3554,3750.5,3750.4,0.4795]
[1760238395018,0.1475,3750.6,3750.4,0.48201639]
[1760238395218,0.00203402,3751.0,3750.7,0.47946]
[1760238395617,0.09801244,3751.5,3751.4,0.47938]
[1760238396126,2.44e-06,3751.5,3751.4,0.72278]
[1760238396721,8.53e-06,3751.5,3751.4,0.72278]
[1760238397729,10.1594,3753.8,3751.6,0.2434]
[1760238397931,0.3554,3753.8,3752.8,0.47919]
[1760238398226,0.1367,3755.4,3752.2,0.47928]
[1760238398227,0.1367,3753.6,3752.2,0.47928]
[1760238398427,0.47916,3753.2,3751.6,0.47935]
[1760238398622,0.3554,3752.9,3751.8,0.47933]
[1760238398823,0.3554,3752.9,3751.3,0.2434]
[1760238399223,0.3554,3752.9,3752.4,0.47925]
[1760238399422,0.3554,3752.9,3752.1,0.47929]
[1760238399729,0.1367,3753.0,3752.7,0.47921]
[1760238399928,0.3554,3752.9,3752.7,0.47921]
[1760238400231,0.1367,3753.0,3752.7,0.47921]
[1760238400423,0.3554,3752.9,3752.7,0.47921]
[1760238400625,0.1367,3753.0,3752.7,0.47921]
[1760238400926,0.3554,3752.9,3752.7,0.47921]
[1760238401126,0.1367,3753.0,3752.7,0.47921]
[1760238401936,0.3461,3752.9,3752.8,0.4792]
[1760238402132,0.3461,3752.9,3751.7,0.2434]
[1760238402936,0.3461,3752.9,3752.6,0.47923]
[1760238403228,0.3461,3752.9,3752.2,0.2436]
[1760238403431,0.3461,3753.1,3753.0,0.47918]
[1760238403827,0.3461,3753.1,3752.2,0.2436]
[1760238404136,0.34804793,3753.2,3753.1,0.47917]
[1760238404328,0.34804793,3753.2,3753.1,0.48216833]
[1760238404828,0.00194793,3753.2,3753.1,0.48216833]
[1760238405238,0.34804793,3753.2,3753.1,0.48216833]
[1760238405532,0.146,3754.5,3753.1,0.48216833]
[1760238405533,0.3461,3754.4,3754.0,0.47905]
[1760238405728,0.3461,3754.4,3753.1,0.00299833]
[1760238406037,0.3461,3754.4,3753.2,0.2416]
[1760238406427,0.3461,3754.4,3753.7,0.47908]
[1760238406625,0.3461,3754.4,3753.1,0.00299833]
[1760238406626,0.3461,3753.4,3753.1,0.00299833]
[1760238406932,0.146,3753.5,3753.1,0.00299833]
[1760238407334,0.3461,3753.4,3753.1,0.00299833]
[1760238408034,0.146,3753.5,3753.1,0.00299833]
[1760238408236,0.62512,3753.5,3753.1,0.00299833]
[1760238408431,0.3461,3753.9,3753.2,0.2416]
[1760238408733,0.3461,3753.9,3753.6,0.4791]
[1760238408929,0.3461,3753.9,3753.7,0.47908]
[1760238409130,0.3461,3754.3,3754.2,0.47902]
[1760238409937,0.47904,3754.2,3753.5,0.47911]
[1760238410129,5.3461,3754.3,3753.5,0.47911]
[1760238410130,0.47902,3754.3,3753.5,0.47911]
[1760238410336,0.00243152,3754.4,3753.2,0.2416]